bitfinex-derivatives/quotes_SOLF0:USTF0_20250923
["timestamp","ask_amount","ask_price","bid_price","bid_amount"]
[1758598845880,7.05283703,216.75,216.69,4.1495]
[1758598846082,3.37975909,216.74,216.69,4.1495]
[1758598846383,3.37975909,216.73,216.69,4.1495]
[1758598846582,3.37975909,216.72,216.69,4.1495]
[1758598846783,3.37975909,216.71,216.69,4.1495]
[1758598846983,7.11,216.78,216.71,4.1492]
[1758598847180,7.05194808,216.77,216.71,4.1492]
[1758598847377,7.05194808,216.76,216.71,4.1492]
[1758598847582,3.37928149,216.75,216.71,4.1492]
[1758598847776,8.149e-05,216.74,216.73,1.47271262]
[1758598847986,7.11,216.84,216.74,64.5346]
[1758598848191,3.67090419,216.83,216.77,1.47271262]
[1758598848381,7.11,216.84,216.78,124.24]
[1758598848688,72.0510033,217.65,216.83,1.47271262]
[1758598848689,7.11,216.92,216.83,1.47271262]
[1758598848979,7.55392887,216.96,216.83,1.47271262]
[1758598848980,7.11,216.96,216.91,1.47271262]
[1758598849183,7.11,216.98,216.92,124.24]
[1758598849386,3.66654407,216.97,216.88,1.47271262]
[1758598849690,7.11,216.96,216.92,1.47271262]
[1758598850576,7.11,216.96,216.89,124.22]
[1758598850784,7.11,216.96,216.89,128.3656]
[1758598851389,7.11,217.02,216.91,4.1453]
[1758598852185,7.11,217.02,216.92,64.4801]
[1758598852687,7.11,217.02,216.95,4.1445]
[1758598852884,7.11,217.06,216.96,124.1]
[1758598853478,7.11,217.06,216.97,4.1441]
[1758598854085,4.1418,217.1,216.98,124.08]
[1758598854286,3.72828332,217.09,216.98,124.08]
[1758598854590,64.4461,217.04,216.93,124.06]
[1758598854791,10.83828332,217.03,216.93,124.06]
[1758598855085,7.11,217.03,216.93,124.06]
[1758598855691,7.11,217.01,216.94,124.02]
[1758598855885,7.11,217.0,216.93,124.02]
[1758598856083,7.11,217.0,216.94,124.02]
[1758598856284,7.11,217.0,216.93,124.0]
[1758598859993,11.2528,217.05,216.93,124.0]
[1758598860291,3.27910955,217.04,216.94,123.9]
[1758598860491,3.56797554,217.11,216.95,123.9]
[1758598860686,3.27832204,217.09,216.95,123.9]
[1758598860890,7.6,217.1,216.95,123.9]
[1758598861490,7.6,217.1,216.96,4.1444]
[1758598862088,4.142,217.09,216.96,4.1444]
[1758598862284,4.142,217.09,216.97,123.84]
[1758598862995,7.6,217.1,216.97,123.84]
[1758598863588,7.6,217.1,217.0,4.1436]
[1758598864202,7.6,217.1,216.98,62.0]
[1758598865801,7.6,217.1,216.99,4.1438]
[1758598865991,7.6,217.1,217.0,123.76]
[1758598866196,7.6,217.1,217.01,123.74]
[1758598866499,7.6,217.1,216.99,4.1438]
[1758598866803,4.1409,217.15,217.03,4.1431]
[1758598867001,4.1409,217.15,217.02,123.72]
[1758598867201,8.32692653,217.16,217.02,123.72]
[1758598868603,4.1412,217.13,217.02,123.72]
[1758598868998,4.1412,217.13,217.03,123.66]
[1758598869197,4.1412,217.13,216.98,474.8829]
[1758598869393,4.1412,217.13,216.99,123.66]
[1758598869598,7.6,217.12,216.99,123.66]
[1758598869798,7.6,217.12,217.01,4.1434]
[1758598870101,7.6,217.12,217.0,64.4568]
[1758598870306,4.86762653,217.16,217.05,4.1426]
[1758598870502,7.6,217.23,217.06,123.62]
[1758598870698,6.94642121,217.22,217.06,123.62]
[1758598870901,7.6,217.2,217.09,4.1419]
[1758598872007,7.6,217.2,217.11,4.1414]
[1758598872208,7.6,217.24,217.12,123.58]
[1758598872512,7.6,217.24,217.11,62.0]
[1758598872708,7.6,217.2,217.12,123.56]
[1758598875407,7.6,217.2,217.13,4.1412]
[1758598875909,7.6,217.24,217.15,4.1407]
[1758598877209,7.6,217.24,217.16,123.46]
[1758598877911,7.6,217.24,217.17,123.42]
[1758598878109,7.44,217.31,217.18,64.4042]
[1758598878406,7.44,217.26,217.16,123.4]
[1758598878709,71.8367,217.21,217.11,123.4]
[1758598878905,6.93833115,217.2,217.11,123.4]
[1758598879209,6.93833115,217.2,217.0,412.6371]
[1758598879210,7.44,217.17,217.04,4.1428]
[1758598879407,14.3873153,217.16,217.0,64.4576]
[1758598879609,3.68848221,217.15,217.02,4.1432]
[1758598879808,3.68848221,217.15,217.01,123.38]
[1758598880198,3.68848221,217.15,217.04,4.1429]
[1758598880904,3.68848221,217.15,217.01,127.5233]
[1758598881105,10.70286735,217.14,217.02,123.34]
[1758598881304,6.95134956,217.13,217.02,123.34]
[1758598881507,7.44,217.14,217.02,123.34]
[1758598881712,3.69378144,217.13,217.02,123.34]
[1758598881907,7.44,217.14,217.02,123.34]
[1758598882108,3.69378225,217.13,217.03,4.1431]
[1758598882309,7.44,217.14,217.02,123.34]
[1758598882611,7.44,217.14,217.05,4.1427]
[1758598885107,3.27181355,217.13,217.05,4.1427]
[1758598885307,7.44,217.14,217.05,4.1427]
[1758598885507,7.44,217.14,217.02,187.7902]
[1758598885508,11.5804,217.18,217.07,4.1423]
[1758598885710,7.44,217.16,217.08,123.26]
[1758598885906,11.5811,217.14,217.08,123.26]
[1758598886113,6.94979072,217.15,216.95,64.472]
[1758598886114,7.44,217.12,216.95,64.472]
[1758598886314,7.44,217.1,216.93,1570.73788072]
[1758598886505,6.95003337,217.09,216.98,127.384]
[1758598886706,3.27201514,217.08,216.98,127.384]
[1758598886905,11.5818,217.1,216.98,127.384]
[1758598887205,6.95860469,217.09,216.98,4.144]
[1758598887404,6.95860469,217.08,216.99,123.22]
[1758598887713,3.27645182,217.07,217.0,4.1437]
[1758598887915,7.44,217.1,217.0,4.1437]
[1758598888205,6.96585865,217.09,217.0,4.1437]
[1758598888413,6.96585865,217.08,217.0,4.1437]
[1758598888614,6.96585865,217.07,217.0,4.1437]
[1758598888805,3.27985067,217.06,217.0,4.1437]
[1758598889110,7.44,217.1,216.99,123.22]
[1758598889111,3.29215907,217.05,216.99,123.22]
[1758598889313,7.44,217.1,216.99,123.22]
[1758598889515,6.98740947,217.09,216.99,123.22]
[1758598889808,6.98740947,217.08,216.99,123.22]
[1758598890015,6.98740947,217.07,216.99,123.22]
[1758598890214,6.98740947,217.06,216.99,123.22]
[1758598890511,6.98740947,217.05,216.99,123.22]
[1758598890713,3.29276768,217.04,216.99,123.22]
[1758598891016,7.44,217.1,216.99,127.3638]
[1758598891206,7.00105965,217.09,216.99,127.3638]
[1758598891412,7.00105965,217.08,216.99,123.22]
[1758598891614,7.44,217.1,216.99,123.22]
[1758598891615,7.00105965,217.07,216.99,123.22]
[1758598891911,7.00105965,217.06,216.99,123.22]
[1758598892109,7.00105965,217.05,216.99,123.22]
[1758598892328,7.00105965,217.04,216.99,123.22]
[1758598892619,7.00105965,217.03,216.99,125.51146161]
[1758598892809,3.30153488,217.02,217.01,4.1435]
[1758598893307,8.33748746,217.09,217.01,4.1435]
[1758598893508,7.0181768,217.08,217.01,4.1435]
[1758598893816,7.0181768,217.07,217.01,4.1435]
[1758598894018,14.0281768,217.06,216.98,62.0]
[1758598894215,7.0181768,217.05,216.99,123.1]
[1758598894518,7.0181768,217.04,216.99,123.1]
[1758598894721,7.0181768,217.03,216.99,123.1]
[1758598894911,7.0181768,217.02,216.99,123.1]
[1758598895114,7.0181768,217.01,216.99,123.1]
[1758598895411,12.04595258,217.08,216.99,123.1]
[1758598895614,3.68959261,217.07,216.99,123.1]
[1758598895818,3.68959261,217.06,216.99,123.1]
[1758598896018,3.68959261,217.05,216.99,123.1]
[1758598896220,3.68959261,217.04,216.99,123.1]
[1758598896420,7.01,217.09,217.0,123.08]
[1758598896613,3.69080464,217.08,217.0,123.08]
[1758598896812,3.69080464,217.07,217.0,127.2236]
[1758598897113,3.69080464,217.06,217.0,127.2236]
[1758598897312,3.69080464,217.05,217.0,127.2236]
[1758598897620,3.69080464,217.04,217.0,127.2236]
[1758598897919,11.152,217.09,217.0,127.2236]
[1758598898119,3.6916841,217.08,217.0,127.2236]
[1758598898316,3.6916841,217.07,217.0,127.2236]
[1758598898517,3.6916841,217.06,217.0,127.2236]
[1758598898717,3.6916841,217.05,217.0,127.2236]
[1758598899012,3.6916841,217.04,216.97,6.43556161]
[1758598899215,3.6916841,217.03,216.98,123.02]
[1758598899414,4.1424,217.07,216.98,123.02]
[1758598899720,4.1431,217.03,216.99,123.02]
[1758598900020,7.01,217.01,216.99,123.02]
[1758598900217,3.69380861,217.0,216.99,123.02]
[1758598900417,7.01,217.05,216.99,123.02]
[1758598900615,7.01,217.03,216.99,123.02]
[1758598900815,3.69354439,217.02,216.99,123.02]
[1758598901119,3.69354439,217.01,216.99,123.02]
[1758598901321,7.01,217.05,216.99,123.02]
[1758598901519,3.69493756,217.04,216.99,123.02]
[1758598901717,3.69493756,217.03,216.99,123.02]
[1758598901918,3.69493756,217.02,216.99,123.02]
[1758598902123,7.01,217.05,216.99,123.02]
[1758598902319,3.69501325,217.04,216.99,123.02]
[1758598902513,3.69501325,217.03,216.99,123.02]
[1758598902915,10.70501325,217.03,216.99,123.02]
[1758598903119,7.01,217.03,216.99,123.02]
[1758598903619,7.01,217.03,217.0,122.96]
[1758598903815,4.1429,217.04,216.95,4.1444]
[1758598904017,10.70784413,217.03,216.96,122.94]
[1758598904218,3.69784413,217.02,216.96,122.94]
[1758598904721,7.01,217.07,216.97,4.1442]
[1758598905020,3.69942999,217.06,216.98,66.75356161]
[1758598905323,11.1518,217.11,217.01,4.1435]
[1758598905523,3.69889695,217.1,217.02,122.92]
[1758598905820,7.01,217.08,217.02,122.92]
[1758598906011,7.01,217.06,217.02,122.92]
[1758598906213,4.1419,217.1,217.02,122.92]
[1758598906418,3.69921124,217.09,217.02,122.92]
[1758598906619,3.69921124,217.08,217.02,122.92]
[1758598906818,3.69921124,217.07,217.02,122.92]
[1758598907118,4.1419,217.1,217.02,122.92]
[1758598907321,3.69934675,217.09,217.02,122.92]
[1758598907523,3.30139303,217.08,217.02,122.92]
[1758598907822,3.30139303,217.07,217.02,122.92]
[1758598908023,3.30139303,217.06,217.02,122.92]
[1758598908330,7.01,217.11,217.03,4.1431]
[1758598908624,3.301273,217.1,217.03,4.1431]
[1758598908827,3.301273,217.09,217.03,4.1431]
[1758598909130,3.301273,217.08,217.03,4.1431]
[1758598909330,7.01,217.11,217.04,4.1427]
[1758598909525,3.30128276,217.1,217.04,4.1427]
[1758598909719,3.30128276,217.09,217.04,4.1427]
[1758598909914,7.01,217.11,217.04,4.1427]
[1758598910222,3.30115749,217.1,217.04,4.1427]
[1758598910421,3.30115749,217.09,217.04,4.1427]
[1758598910621,7.01,217.11,217.04,4.1427]
[1758598910822,3.30131022,217.1,217.04,4.1427]
[1758598911127,3.30131022,217.09,217.04,4.1427]
[1758598911426,3.30143436,217.08,217.04,4.1427]
[1758598911628,7.01,217.11,217.04,4.1427]
[1758598911823,5.03595258,217.16,216.98,2.29146161]
[1758598911824,3.30143436,217.1,216.98,2.29146161]
[1758598912023,2.29146161,217.08,216.98,122.78]
[1758598912224,7.00103575,217.07,216.98,122.78]
[1758598912522,3.30143436,217.06,216.98,122.78]
[1758598912726,3.30143436,217.05,216.98,122.78]
[1758598913025,3.30143436,217.04,216.98,122.78]
[1758598913222,3.30143436,217.03,216.92,67.29223286]
[1758598913528,3.30143436,217.02,216.93,122.76]
[1758598913828,3.30143436,217.02,216.95,4.1446]
[1758598914026,3.30143436,217.02,216.96,122.76]
[1758598914222,7.01,217.07,216.96,122.76]
[1758598914428,3.3012534,217.06,216.96,122.76]
[1758598914630,3.3012534,217.05,216.96,122.76]
[1758598914823,3.3012534,217.04,216.96,122.76]
[1758598915023,3.3012534,217.03,216.96,122.76]
[1758598915229,9.30146161,217.07,216.96,122.76]
[1758598915430,3.30091001,217.06,216.96,122.76]
[1758598915731,3.30091001,217.05,216.94,62.0]
[1758598915925,10.31091001,217.04,216.94,62.0]
[1758598916131,3.30091001,217.03,216.95,122.72]
[1758598916625,7.44411001,217.03,216.96,122.72]
[1758598916822,3.30091001,217.02,216.96,122.72]
[1758598917127,7.01,217.0,216.96,122.72]
[1758598917331,4.1435,217.01,216.96,122.72]
[1758598917332,7.01,216.98,216.96,122.72]
[1758598917640,7.01,216.98,216.94,122.7]
[1758598918134,64.4518,217.02,216.88,348.2]
[1758598918326,7.01,217.0,216.89,122.68]
[1758598918636,7.01,217.04,216.94,4.1448]
[1758598918934,3.29377653,217.03,216.95,122.68]
[1758598919126,3.29377653,217.02,216.95,122.68]
[1758598919326,3.29377653,217.01,216.95,122.68]
[1758598919632,7.01,217.03,216.95,122.68]
[1758598919835,7.43748414,217.02,216.91,6.43666161]
[1758598920032,3.29418414,217.01,216.92,122.66]
[1758598920234,3.29418414,217.01,216.91,4.1452]
[1758598920235,7.01,217.0,216.91,4.1452]
[1758598920436,7.54,216.97,216.9,122.64]
[1758598920737,3.29607789,216.96,216.9,122.64]
[1758598920929,7.54,216.97,216.9,126.7855]
[1758598920930,3.29607789,216.95,216.9,126.7855]
[1758598921132,7.54,216.97,216.9,126.7855]
[1758598921330,3.29604452,216.96,216.9,126.7855]
[1758598921639,3.29604452,216.95,216.9,126.7855]
[1758598921823,7.54,216.95,216.9,126.7855]
[1758598922227,4.1434,217.02,216.9,126.7855]
[1758598922430,2.29146161,217.08,216.92,4.1451]
[1758598922431,14.50788213,217.01,216.92,4.1451]
[1758598922638,3.29722376,217.0,216.94,1.46766787]
[1758598922835,3.29722376,216.99,216.95,122.62]
[1758598923038,7.54,217.01,216.95,122.62]
[1758598923331,7.54,216.98,216.9,5.61326787]
[1758598923527,7.54,216.98,216.88,349.66766787]
[1758598923528,4.76424072,216.97,216.88,349.66766787]
[1758598923728,3.29657285,216.96,216.89,122.6]
[1758598924735,3.29657285,216.96,216.9,122.58]
[1758598925038,1.46766787,216.95,216.9,122.58]
[1758598925226,10.83657285,216.94,216.9,122.58]
[1758598925430,4.144,216.99,216.9,124.04766787]
[1758598925431,7.54,216.98,216.9,124.04766787]
[1758598925630,3.29867395,216.97,216.9,122.58]
[1758598925830,3.29867395,216.96,216.9,122.58]
[1758598926033,3.29867395,216.95,216.9,122.58]
[1758598926234,3.29867395,216.94,216.9,122.58]
[1758598926426,7.54,216.98,216.9,122.58]
[1758598926427,3.29867395,216.93,216.9,122.58]
[1758598926632,7.54,216.98,216.9,122.58]
[1758598926835,6.9697895,216.97,216.9,122.58]
[1758598927031,3.29769143,216.96,216.89,1.46766787]
[1758598927226,7.54,216.94,216.9,122.54]
[1758598927435,10.83769143,216.93,216.89,122.54]
[1758598927632,10.83769143,216.92,216.88,348.2]
[1758598927833,3.29769143,216.91,216.88,470.74]
[1758598928331,3.29769143,216.91,216.88,122.54]
[1758598928630,1.46766787,216.97,216.88,124.00766787]
[1758598928834,3.29593585,216.96,216.88,124.00766787]
[1758598929043,3.29593585,216.95,216.88,124.00766787]
[1758598929338,3.29582054,216.94,216.88,124.00766787]
[1758598929539,1.46766787,217.01,216.92,5.61286787]
[1758598929733,3.29519464,217.0,216.93,122.52]
[1758598929933,3.29519464,216.99,216.93,122.52]
[1758598930143,3.29519464,216.98,216.93,122.52]
[1758598930445,3.29519464,216.97,216.93,122.52]
[1758598930637,1.46766787,217.01,216.93,122.52]
[1758598930829,6.96530852,217.0,216.94,122.5]
[1758598931033,6.96530852,216.99,216.94,122.5]
[1758598931233,3.29558888,216.98,216.94,122.5]
[1758598931934,1.46766787,217.01,216.94,122.5]
[1758598932239,3.29537944,217.0,216.95,4.1446]
[1758598932433,3.29537944,216.99,216.95,4.1446]
[1758598932632,9.00766787,217.03,216.95,4.1446]
[1758598932833,6.96463734,217.02,216.95,4.1446]
[1758598933035,3.29521815,217.01,216.95,4.1446]
[1758598933236,3.29521815,217.0,216.95,4.1446]
[1758598933440,3.29521815,216.99,216.95,4.1446]
[1758598933637,9.00766787,217.03,216.95,4.1446]
[1758598933939,3.29530934,217.02,216.95,4.1446]
[1758598934238,3.29530934,217.01,216.95,4.1446]
[1758598934437,3.29530934,217.0,216.95,4.1446]
[1758598934639,3.29530934,216.99,216.95,4.1446]
[1758598934841,9.00766787,217.03,216.94,122.5]
[1758598935042,3.29555973,217.02,216.94,122.5]
[1758598935237,4.7632276,217.01,216.95,122.42]
[1758598935440,6.9662068,217.0,216.95,122.42]
[1758598935638,1.46766787,216.97,216.9,122.4]
[1758598935836,6.9662068,216.96,216.9,122.4]
[1758598936043,3.29555973,216.95,216.9,122.4]
[1758598936338,3.29555973,216.94,216.9,122.4]
[1758598936540,10.73555973,216.93,216.89,122.4]
[1758598936747,7.44,216.93,216.89,122.4]
[1758598937142,1.46766787,216.95,216.89,122.4]
[1758598937446,1.46766787,216.95,216.9,122.38]
[1758598937447,3.29630501,216.94,216.9,122.38]
[1758598937647,3.29630501,216.93,216.9,122.38]
[1758598937847,3.29646965,216.92,216.9,122.38]
[1758598938047,8.90766787,216.95,216.9,122.38]
[1758598938248,3.29646965,216.94,216.89,122.36]
[1758598938449,3.29646965,216.93,216.87,1.46766787]
[1758598938644,1.46766787,216.97,216.88,122.36]
[1758598938849,3.29605187,216.96,216.89,1.46766787]
[1758598939041,3.29605187,216.95,216.89,1.46766787]
[1758598939238,1.46766787,216.99,216.89,5.61346787]
[1758598939443,13.05206787,216.97,216.87,1.46766787]
[1758598939643,6.96554207,216.96,216.87,1.46766787]
[1758598939841,3.29535003,216.95,216.88,122.34]
[1758598940050,3.29535003,216.94,216.88,122.34]
[1758598940244,3.29535003,216.93,216.88,122.34]
[1758598940450,8.90766787,216.97,216.88,122.34]
[1758598940650,6.9654076,216.96,216.88,122.34]
[1758598940850,3.2955826,216.95,216.88,122.34]
[1758598941051,3.2955826,216.94,216.88,122.34]
[1758598941250,3.2955826,216.93,216.88,122.34]
[1758598941452,8.90766787,216.97,216.88,122.34]
[1758598941754,6.96539443,216.96,216.88,122.34]
[1758598941953,3.29557259,216.95,216.88,122.34]
[1758598942154,3.29557259,216.94,216.88,122.34]
[1758598942454,3.29557259,216.93,216.88,122.34]
[1758598942754,13.05196787,216.97,216.88,122.34]
[1758598942954,3.29559278,216.96,216.88,122.34]
[1758598943150,3.29559278,216.95,216.88,122.34]
[1758598943356,3.29559278,216.94,216.88,122.34]
[1758598943556,3.29559278,216.93,216.88,122.34]
[1758598943754,13.05196787,216.97,216.88,122.34]
[1758598943954,3.29563805,216.96,216.88,122.34]
[1758598944253,3.29563805,216.95,216.88,122.34]
[1758598944454,3.29563805,216.94,216.88,122.34]
[1758598944755,3.29563805,216.93,216.89,122.28]
[1758598944957,7.44,216.97,216.89,122.28]
[1758598945154,3.29564649,216.96,216.89,122.28]
[1758598945455,3.29564649,216.95,216.89,122.28]
[1758598945654,3.29564649,216.94,216.89,122.28]
[1758598945857,3.29564649,216.93,216.89,122.28]
[1758598946154,8.90766787,216.97,216.89,122.28]
[1758598946357,3.29530888,216.96,216.89,122.28]
[1758598946558,3.29530888,216.95,216.89,122.28]
[1758598946748,7.44,216.9,216.73,64.537]
[1758598947058,3.29530888,216.89,216.83,1.46766787]
[1758598947259,3.29530888,216.89,216.84,122.2]
[1758598947653,1.46766787,216.93,216.84,122.2]
[1758598947654,3.29530888,216.88,216.84,122.2]
[1758598947858,7.44,216.92,216.84,122.2]
[1758598948056,3.29523959,216.91,216.84,122.2]
[1758598948356,3.29523959,216.9,216.84,122.2]
[1758598948656,3.29523959,216.89,216.84,122.2]
[1758598948961,1.46766787,216.96,216.85,1.46766787]
[1758598949151,6.91365399,216.95,216.85,1.46766787]
[1758598949347,4.76118163,216.94,216.85,1.46766787]
[1758598949548,3.29351376,216.93,216.85,1.46766787]
[1758598949758,3.29351376,216.92,216.86,4.1463]
[1758598949959,3.29351376,216.91,216.86,4.1463]
[1758598950161,1.46766787,216.94,216.86,4.1463]
[1758598950359,3.29304945,216.93,216.86,4.1463]
[1758598950661,3.29304945,216.92,216.86,4.1463]
[1758598950958,3.29304945,216.91,216.85,1.46766787]
[1758598951159,1.46766787,216.94,216.85,1.46766787]
[1758598951455,8.68766787,216.92,216.83,5.61456787]
[1758598951660,3.29329769,216.91,216.84,122.14]
[1758598952151,1.46766787,216.9,216.81,4.1472]
[1758598952356,8.68766787,216.88,216.74,64.5348]
[1758598952556,3.29329769,216.89,216.7,348.42]
[1758598952557,1.46766787,216.82,216.7,348.42]
[1758598952755,1.46766787,216.82,216.74,4.1486]
[1758598953457,7.22,216.85,216.76,4.1482]
[1758598953657,4.76202694,216.84,216.77,122.1]
[1758598953961,3.29435907,216.83,216.77,122.1]
[1758598954159,1.46766787,216.86,216.78,1.46766787]
[1758598954359,3.29308932,216.85,216.78,1.46766787]
[1758598954562,1.46766787,216.86,216.78,1.46766787]
[1758598954761,3.29425159,216.85,216.78,1.46766787]
[1758598954960,1.46766787,216.86,216.78,1.46766787]
[1758598955264,7.22,216.95,216.85,1.46766787]
[1758598955461,7.22,216.95,216.89,1.46766787]
[1758598955664,14.04505189,216.97,216.91,1.46766787]
[1758598956356,1.46766787,216.98,216.89,1.46766787]
[1758598956663,10.84250601,216.97,216.89,1.46766787]
[1758598956860,7.22,216.97,216.89,1.46766787]
[1758598957056,1.46766787,216.96,216.87,1.46766787]
[1758598957256,1.46766787,216.96,216.87,122.06]
[1758598958059,7.22,216.97,216.89,1.46766787]
[1758598958957,7.22,216.97,216.9,4.1455]
[1758598960264,3.62663155,216.96,216.9,4.1455]
[1758598960466,7.22,216.97,216.9,4.1455]
[1758598960667,3.62663155,216.96,216.89,1.46766787]
[1758598960861,7.22,216.97,216.89,1.46766787]
[1758598961067,3.62663235,216.96,216.89,1.46766787]
[1758598961268,7.22,216.97,216.89,1.46766787]
[1758598961464,3.62764085,216.96,216.89,1.46766787]
[1758598961666,7.22,216.97,216.89,1.46766787]
[1758598961865,3.62764085,216.96,216.91,1.46766787]
[1758598962066,7.22,216.97,216.91,1.46766787]
[1758598962259,3.62764085,216.96,216.9,123.44766787]
[1758598962462,7.22,216.97,216.9,123.44766787]
[1758598962669,3.62813384,216.96,216.9,123.44766787]
[1758598962868,11.3643,216.97,216.9,123.44766787]
[1758598963063,3.62816951,216.96,216.9,121.98]
[1758598963364,3.62816951,216.95,216.9,121.98]
[1758598963568,3.62816951,216.94,216.9,121.98]
[1758598963872,3.62914881,216.93,216.78,64.5223]
[1758598964066,3.62914881,216.92,216.84,1.46766787]
[1758598964365,8.68766787,216.94,216.84,1.46766787]
[1758598964561,3.62997738,216.93,216.84,1.46766787]
[1758598964763,3.62997738,216.92,216.84,1.46766787]
[1758598965067,4.145,216.93,216.84,1.46766787]
[1758598965265,3.62997738,216.92,216.84,1.46766787]
[1758598965460,4.145,216.93,216.84,1.46766787]
[1758598965659,3.63004039,216.92,216.84,1.46766787]
[1758598965862,4.145,216.93,216.84,1.46766787]
[1758598966165,4.1455,216.91,216.8,4.1474]
[1758598966366,10.85027993,216.9,216.83,1.46766787]
[1758598966567,7.22,216.9,216.83,1.46766787]
[1758598967268,3.28714028,216.89,216.83,1.46766787]
[1758598967568,3.28714028,216.88,216.83,1.46766787]
[1758598967766,3.28714028,216.87,216.83,1.46766787]
[1758598967965,8.68766787,216.92,216.83,1.46766787]
[1758598968164,6.91722515,216.91,216.83,1.46766787]
[1758598968366,3.28709905,216.9,216.83,1.46766787]
[1758598968563,3.28709905,216.89,216.83,1.46766787]
[1758598968869,3.28709905,216.88,216.83,1.46766787]
[1758598969057,3.28709905,216.87,216.85,1.46766787]
[1758598969263,7.22,216.92,216.85,1.46766787]
[1758598969464,3.28708724,216.91,216.85,1.46766787]
[1758598969666,3.28708724,216.9,216.85,1.46766787]
[1758598969866,3.28708724,216.89,216.87,1.46766787]
[1758598970072,4.1448,216.95,216.87,1.46766787]
[1758598970267,6.9170969,216.94,216.87,1.46766787]
[1758598970464,3.28700916,216.93,216.89,1.46766787]
[1758598970671,3.28700916,216.92,216.91,1.46766787]
[1758598972178,3.28700916,216.92,216.89,5.61336787]
[1758598972379,3.28700916,216.91,216.89,5.61336787]
[1758598972569,4.1442,216.98,216.89,5.61336787]
[1758598972874,6.93053695,216.97,216.89,5.61336787]
[1758598973074,6.93053695,216.96,216.89,5.61336787]
[1758598973275,6.93053695,216.95,216.89,5.61336787]
[1758598973472,10.50668708,216.94,216.88,121.82]
[1758598973674,3.28668708,216.93,216.88,121.82]
[1758598973870,7.22,216.92,216.88,121.82]
[1758598974078,3.28668708,216.91,216.88,127.43366787]
[1758598974266,8.68766787,216.97,216.88,127.43366787]
[1758598974469,6.930953,216.96,216.88,127.43366787]
[1758598974680,6.930953,216.95,216.88,127.43366787]
[1758598974980,6.930953,216.94,216.88,127.43366787]
[1758598975276,3.28688031,216.93,216.88,127.43366787]
[1758598975581,3.28688031,216.92,216.88,127.43366787]
[1758598977883,3.28688031,216.92,216.9,1.46766787]
[1758598978192,3.28903259,216.91,216.9,1.46766787]
[1758598978587,14.08045893,217.02,216.92,64.4807]
[1758598978789,14.08045893,217.02,216.97,1.46766787]
[1758598979090,14.08045893,217.02,216.97,123.14766787]
[1758598979290,7.22,217.03,216.97,123.14766787]
[1758598979489,10.86475768,217.02,216.97,123.14766787]
[1758598979688,7.22,217.02,216.97,123.14766787]
[1758598980288,1.46766787,216.98,216.85,64.5021]
[1758598980485,3.64658136,216.97,216.88,1.46766787]
[1758598980687,3.64658136,216.96,216.91,1.46766787]
[1758598980990,9.01766787,217.03,216.95,1.46766787]
[1758598981190,3.64503725,217.02,216.95,1.46766787]
[1758598981390,3.64503725,217.01,216.95,1.46766787]
[1758598981597,7.55,217.03,216.97,1.46766787]
[1758598981783,1.46766787,217.01,216.87,64.4958]
[1758598981986,3.64472118,217.0,216.92,1.46766787]
[1758598982190,3.64472118,217.0,216.94,1.46766787]
[1758598982496,7.55,217.02,216.94,123.06766787]
[1758598982686,3.64434388,217.01,216.95,2.29298521]
[1758598982891,7.55,217.07,216.95,2.29298521]
[1758598983087,3.64379449,217.06,216.99,4.1438]
[1758598983293,7.55,217.07,217.0,121.58]
[1758598983491,3.64145374,217.06,217.0,121.58]
[1758598983790,7.55,217.07,217.0,121.58]
[1758598983997,3.64145074,217.06,217.0,121.58]
[1758598984294,7.55,217.07,217.0,121.58]